bitfinex-derivatives/quotes_BTCF0:USTF0_20230105
["timestamp","ask_amount","ask_price","bid_price","bid_amount"]
[1672949422637,0.105,16884.0,16883.0,0.109]
[1672949422847,0.105,16884.0,16883.0,0.009]
[1672949423584,0.105,16884.0,16883.0,0.109]
[1672949424000,0.105,16884.0,16883.0,0.009]
[1672949428111,0.105,16884.0,16883.0,0.10891955]
[1672949430841,0.105,16884.0,16883.0,0.00891955]
[1672949431679,0.105,16884.0,16883.0,0.10891955]
[1672949431891,0.105,16884.0,16883.0,0.00891955]
[1672949440838,0.1,16883.0,16879.0,0.7811]
[1672949441152,0.3007,16882.0,16879.0,0.7811]
[1672949441463,0.1,16881.0,16878.0,0.3007]
[1672949441784,0.1,16881.0,16879.0,0.1]
[1672949441983,0.1,16881.0,16879.0,0.212]
[1672949442929,0.1,16881.0,16879.0,0.1]
[1672949443252,0.101,16881.0,16879.0,0.1]
[1672949443462,0.1,16881.0,16879.0,0.1]
[1672949443777,0.101,16881.0,16879.0,0.239]
[1672949444935,0.101,16881.0,16879.0,0.139]
[1672949447249,0.3007,16880.0,16879.0,0.139]
[1672949448931,0.4017,16881.0,16879.0,0.139]
[1672949449139,0.001,16880.0,16879.0,0.139]
[1672949488033,0.001,16880.0,16879.0,0.13889846]
[1672949497713,0.3017,16880.0,16879.0,0.13889846]
[1672949499076,0.001,16880.0,16879.0,0.13889846]
[1672949510633,0.3017,16880.0,16879.0,0.13889846]
[1672949514006,0.001,16880.0,16879.0,0.13889846]
[1672949516098,0.00088585,16880.0,16879.0,0.13889846]
[1672949519895,0.30158585,16880.0,16879.0,0.13889846]
[1672949536179,0.3007,16880.0,16877.0,0.4007]
[1672949536392,0.1,16879.0,16877.0,0.4007]
[1672949537646,0.101,16879.0,16877.0,0.5397]
[1672949544163,0.101,16879.0,16877.0,0.4397]
[1672949549209,0.101,16879.0,16877.0,0.139]
[1672949550058,0.3007,16878.0,16877.0,0.139]
[1672949551001,0.3007,16878.0,16876.0,0.1]
[1672949551317,0.1,16877.0,16876.0,0.1]
[1672949552896,0.101,16877.0,16876.0,0.239]
[1672949557518,0.101,16877.0,16876.0,0.5397]
[1672949558361,0.101,16877.0,16876.0,0.239]
[1672949558676,0.101,16877.0,16876.0,0.5397]
[1672949558993,0.101,16877.0,16876.0,0.4397]
[1672949560460,0.101,16877.0,16876.0,0.139]
[1672949560671,0.101,16877.0,16876.0,0.1388356]
[1672949572032,0.101,16877.0,16876.0,0.2388356]
[1672949572974,0.101,16877.0,16876.0,0.1388356]
[1672949573710,0.101,16877.0,16876.0,0.2388356]
[1672949574133,0.101,16877.0,16876.0,0.1388356]
[1672949575707,0.101,16877.0,16876.0,0.2388356]
[1672949580019,0.101,16877.0,16876.0,0.5395356]
[1672949580234,0.001,16877.0,16876.0,0.5395356]
[1672949586656,0.001,16877.0,16876.0,0.4395356]
[1672949599798,0.101,16877.0,16876.0,0.1388356]
[1672949607261,0.101,16877.0,16876.0,0.13863297]
[1672949611358,0.101,16877.0,16876.0,0.43933297]
[1672949613145,0.101,16877.0,16876.0,0.13863297]
[1672949616719,0.101,16877.0,16876.0,0.43933297]
[1672949619036,0.101,16877.0,16876.0,0.13863297]
[1672949633328,0.101,16877.0,16876.0,0.43933297]
[1672949645720,0.001,16877.0,16876.0,0.43933297]
[1672949645934,0.001,16877.0,16876.0,0.53933297]
[1672949649502,0.001,16877.0,16876.0,0.84003297]
[1672949649712,0.001,16877.0,16876.0,0.23863297]
[1672949649924,0.001,16877.0,16876.0,0.84003297]
[1672949654960,0.001,16877.0,16876.0,0.83986123]
[1672949672942,0.001,16877.0,16876.0,0.23846123]
[1672949673262,0.001,16877.0,16876.0,0.83986123]
[1672949689435,0.001,16877.0,16876.0,0.53916123]
[1672949696163,0.001,16877.0,16876.0,0.23846123]
[1672949696585,0.001,16877.0,16876.0,0.53916123]
[1672949699112,0.001,16877.0,16876.0,0.23846123]
[1672949699317,0.001,16877.0,16876.0,0.53916123]
[1672949706467,0.001,16877.0,16876.0,0.53904491]
[1672949715088,0.001,16877.0,16876.0,1.13214491]
[1672949719186,0.001,16877.0,16876.0,0.83144491]
[1672949719399,0.001,16877.0,16876.0,1.43284491]
[1672949723513,0.1,16880.0,16877.0,0.1]
[1672949723721,0.1,16880.0,16879.0,0.3007]
[1672949723923,0.1,16880.0,16879.0,0.6014]
[1672949724772,0.101,16880.0,16879.0,0.7414]
[1672949730979,0.001,16880.0,16879.0,1.3345]
[1672949748727,0.001,16880.0,16879.0,0.7331]
[1672949749048,0.001,16880.0,16879.0,1.3345]
[1672949750095,0.001,16880.0,16879.0,0.7414]
[1672949751576,0.001,16880.0,16879.0,0.5407]
[1672949754942,0.001,16880.0,16879.0,0.8414]
[1672949776180,0.001,16880.0,16879.0,0.84124307]
[1672949789739,0.001,16880.0,16879.0,0.23984307]
[1672949789951,0.001,16880.0,16879.0,0.54054307]
[1672949808141,0.001,16880.0,16879.0,0.84124307]
[1672949818126,0.001,16880.0,16879.0,0.54054307]
[1672949822334,0.001,16880.0,16879.0,0.54048]
[1672949832317,0.001,16880.0,16879.0,0.44048]
[1672949835368,0.001,16880.0,16879.0,0.13978]
[1672949835774,0.101,16880.0,16879.0,0.13978]
[1672949837347,0.4017,16880.0,16879.0,0.13978]
[1672949841461,0.1,16879.0,16876.0,0.4007]
[1672949842817,0.113,16879.0,16876.0,0.4467]
[1672949845871,0.113,16879.0,16876.0,0.3467]
[1672949851120,0.113,16879.0,16876.0,0.046]
[1672949854171,0.4137,16879.0,16876.0,0.046]
[1672949860074,0.4137,16879.0,16876.0,0.3467]
[1672949861846,0.4137,16879.0,16877.0,0.1]
[1672949862160,0.4137,16879.0,16876.0,0.3467]
[1672949864896,0.4137,16879.0,16877.0,0.1]
[1672949866057,0.4007,16879.0,16877.0,0.1]
[1672949866373,0.114,16879.0,16877.0,0.046]
[1672949866578,0.4147,16879.0,16877.0,0.046]
[1672949866998,0.114,16879.0,16877.0,0.046]
[1672949867214,0.114,16879.0,16878.0,0.1]
[1672949867635,0.114,16879.0,16877.0,0.146]
[1672949868999,0.114,16879.0,16878.0,0.046]
[1672949869422,0.114,16879.0,16877.0,0.146]
[1672949869843,0.1,16879.0,16877.0,0.1]
[1672949870055,0.114,16879.0,16878.0,0.046]
[1672949870371,0.1,16879.0,16877.0,0.1]
[1672949870584,0.114,16879.0,16877.0,0.146]
[1672949871835,0.114,16879.0,16878.0,0.046]
[1672949872155,0.1,16879.0,16877.0,0.1]
[1672949872366,0.114,16879.0,16877.0,0.146]
[1672949872778,0.114,16879.0,16878.0,0.046]
[1672949873309,0.114,16879.0,16877.0,0.146]
[1672949873724,0.1,16879.0,16877.0,0.1]
[1672949873933,0.114,16879.0,16878.0,0.046]
[1672949875097,0.114,16879.0,16877.0,0.1]
[1672949875098,0.114,16879.0,16877.0,0.146]
[1672949875830,0.114,16879.0,16878.0,0.046]
[1672949876359,0.114,16879.0,16877.0,0.146]
[1672949876780,0.114,16879.0,16878.0,0.046]
[1672949877505,0.11388989,16879.0,16878.0,0.046]
[1672949877928,0.11388989,16879.0,16877.0,0.4467]
[1672949878351,0.11388989,16879.0,16878.0,0.046]
[1672949878883,0.11388989,16879.0,16877.0,0.4467]
[1672949879301,0.09988989,16879.0,16877.0,0.4007]
[1672949879514,0.11388989,16879.0,16878.0,0.046]
[1672949880779,0.11388989,16879.0,16877.0,0.4467]
[1672949880983,0.11388989,16879.0,16877.0,0.4007]
[1672949881193,0.11388989,16879.0,16878.0,0.046]
[1672949881610,0.09988989,16879.0,16877.0,0.4007]
[1672949881820,0.11388989,16879.0,16877.0,0.4467]
[1672949882037,0.11388989,16879.0,16877.0,0.4007]
[1672949882245,0.11388989,16879.0,16878.0,0.046]
[1672949883922,0.09988989,16879.0,16877.0,0.4007]
[1672949884143,0.11388989,16879.0,16877.0,0.4467]
[1672949884454,0.11388989,16879.0,16878.0,0.046]
[1672949884875,0.09988989,16879.0,16877.0,0.3007]
[1672949885086,0.11388989,16879.0,16877.0,0.3467]
[1672949885503,0.11388989,16879.0,16878.0,0.046]
[1672949885931,0.09988989,16879.0,16877.0,0.3007]
[1672949886135,0.11388989,16879.0,16877.0,0.3467]
[1672949887080,0.09988989,16879.0,16877.0,0.3007]
[1672949887392,0.11388989,16879.0,16878.0,0.046]
[1672949887607,0.11388989,16879.0,16877.0,0.3467]
[1672949889807,0.11388989,16879.0,16877.0,0.046]
[1672949893706,0.3007,16878.0,16877.0,0.046]
[1672949894847,0.3147,16878.0,16877.0,0.046]
[1672949923976,0.014,16878.0,16877.0,0.046]
[1672949924295,0.3147,16878.0,16877.0,0.046]
[1672949924499,0.4147,16878.0,16877.0,0.046]
[1672949927129,0.4147,16878.0,16877.0,0.04579444]
[1672949939427,0.114,16878.0,16877.0,0.04579444]
[1672949939640,0.4147,16878.0,16877.0,0.04579444]
[1672949943001,0.114,16878.0,16877.0,0.04579444]
[1672949943213,0.4147,16878.0,16877.0,0.04579444]
[1672949959504,0.114,16878.0,16877.0,0.04579444]
[1672949959818,0.4147,16878.0,16877.0,0.04579444]
[1672949971900,0.4147,16878.0,16877.0,0.04564576]
[1672949972964,0.4007,16878.0,16877.0,0.041]
[1672949973178,0.4137,16878.0,16877.0,0.041]
[1672949973599,0.4007,16878.0,16875.0,0.4007]
[1672949973812,0.4367,16878.0,16877.0,0.006]
[1672949975694,0.4067,16878.0,16877.0,0.039]
[1672949976118,0.4367,16878.0,16877.0,0.006]
[1672949976537,0.4007,16878.0,16875.0,0.4007]
[1672949976753,0.4067,16878.0,16877.0,0.039]
[1672949977281,0.136,16878.0,16877.0,0.006]
[1672949978322,0.136,16878.0,16877.0,0.1]
[1672949978538,0.106,16878.0,16877.0,0.139]
[1672949980115,0.106,16878.0,16877.0,0.039]
[1672949980738,0.106,16878.0,16877.0,0.139]
[1672949981061,0.106,16878.0,16877.0,0.039]
[1672949981796,0.106,16878.0,16877.0,0.139]
[1672949983369,0.106,16878.0,16877.0,0.4397]
[1672949983583,0.106,16878.0,16877.0,0.3397]
[1672949984944,0.106,16878.0,16877.0,0.039]
[1672949986944,0.106,16878.0,16877.0,0.3397]
[1672949987998,0.006,16878.0,16877.0,0.3397]
[1672949988624,0.036,16878.0,16877.0,0.3067]
[1672949996614,0.036,16878.0,16877.0,0.006]
[1672949996820,0.036,16878.0,16877.0,0.3067]
[1672949997770,0.036,16878.0,16877.0,0.006]
[1672949997982,0.036,16878.0,16877.0,0.3067]
[1672950002500,0.036,16878.0,16877.0,0.006]
[1672950017220,0.036,16878.0,16877.0,0.00584014]
[1672950021844,0.036,16878.0,16877.0,0.30654014]
[1672950025429,0.091,16878.0,16877.0,0.3017]
[1672950025848,0.09988989,16879.0,16877.0,0.3007]
[1672950026062,0.134,16878.0,16877.0,0.3017]
[1672950031312,0.134,16878.0,16877.0,0.001]
[1672950031526,0.134,16878.0,16877.0,0.3017]
[1672950049396,0.134,16878.0,16877.0,0.001]
[1672950049590,0.134,16878.0,16877.0,0.3017]
[1672950049812,0.134,16878.0,16877.0,0.001]
[1672950050126,0.134,16878.0,16877.0,0.3017]
[1672950050858,0.134,16878.0,16877.0,0.001]
[1672950051073,0.134,16878.0,16877.0,0.3017]
[1672950051805,0.134,16878.0,16877.0,0.001]
[1672950052011,0.134,16878.0,16877.0,0.3017]
[1672950053267,0.134,16878.0,16877.0,0.001]
[1672950053482,0.134,16878.0,16877.0,0.3017]
[1672950056323,0.134,16878.0,16877.0,0.001]
[1672950056639,0.134,16878.0,16877.0,0.3017]
[1672950062941,0.134,16878.0,16877.0,0.30161817]
[1672950064105,0.134,16878.0,16877.0,0.00091817]
[1672950067586,0.1,16877.0,16875.0,0.4007]
[1672950068199,0.1,16877.0,16875.0,0.3007]
[1672950068635,0.11,16877.0,16875.0,0.3067]
[1672950071887,0.11,16877.0,16875.0,0.006]
[1672950073256,0.3007,16876.0,16875.0,0.006]
[1672950074198,0.1,16875.0,16874.0,0.1]
[1672950075241,0.115,16875.0,16874.0,0.107]
[1672950075882,0.115,16875.0,16874.0,0.007]
[1672950076301,0.115,16875.0,16874.0,0.107]
[1672950082185,0.115,16875.0,16874.0,0.007]
[1672950082393,0.115,16875.0,16874.0,0.107]
[1672950082616,0.115,16875.0,16874.0,0.007]
[1672950083351,0.115,16875.0,16874.0,0.107]
[1672950083667,0.115,16875.0,16874.0,0.007]
[1672950087331,0.115,16875.0,16874.0,0.107]
[1672950087545,0.115,16875.0,16874.0,0.007]
[1672950110454,0.4157,16875.0,16874.0,0.007]
[1672950113088,0.1,16874.0,16871.0,1.0818]
[1672950113408,0.1,16874.0,16871.0,0.3007]
[1672950113608,0.1,16874.0,16871.0,0.4007]
[1672950114349,0.114,16874.0,16871.0,0.3077]
[1672950114556,0.114,16874.0,16871.0,0.4077]
[1672950115496,0.114,16874.0,16871.0,0.3077]
[1672950115704,0.114,16874.0,16871.0,0.4077]
[1672950116352,0.7071,16874.0,16871.0,0.3077]
[1672950116554,0.114,16874.0,16871.0,0.3077]
[1672950116973,0.114,16874.0,16872.0,0.1]
[1672950118026,0.114,16874.0,16871.0,0.4077]
[1672950118348,0.114,16874.0,16872.0,0.1]
[1672950118759,0.1,16874.0,16872.0,0.1]
[1672950118968,0.1,16874.0,16871.0,0.4007]
[1672950118969,0.114,16874.0,16871.0,0.4007]
[1672950119812,0.114,16874.0,16872.0,0.1]
[1672950120439,0.114,16874.0,16871.0,0.4017]
[1672950120760,0.114,16874.0,16872.0,0.1]
[1672950120957,0.1,16874.0,16872.0,0.1]
[1672950121168,0.114,16874.0,16872.0,0.001]
[1672950121389,0.114,16874.0,16872.0,0.101]
[1672950121591,0.114,16874.0,16872.0,0.001]
[1672950121799,0.1,16874.0,16872.0,0.1]
[1672950122016,0.114,16874.0,16872.0,0.1]
[1672950122331,0.114,16874.0,16873.0,0.3007]
[1672950123702,0.114,16874.0,16873.0,0.3017]
[1672950125384,0.114,16874.0,16873.0,0.001]
[1672950129482,0.1,16873.0,16871.0,0.3007]
[1672950129787,0.1,16873.0,16870.0,0.1]
[1672950129996,0.1,16873.0,16870.0,0.4007]
[1672950130212,0.1,16873.0,16870.0,0.3007]
[1672950130419,0.1,16873.0,16870.0,0.4007]
[1672950130635,0.1,16873.0,16870.0,0.3007]
[1672950131055,0.1,16873.0,16868.0,0.1]
[1672950131367,0.1,16873.0,16869.0,0.3007]
[1672950131787,0.3007,16872.0,16869.0,0.3007]
[1672950131994,0.1,16871.0,16869.0,0.3007]
[1672950133362,0.114,16871.0,16868.0,0.1]
[1672950134411,0.114,16871.0,16869.0,0.3007]
[1672950134945,0.113,16871.0,16869.0,0.3007]
[1672950135359,0.114,16871.0,16869.0,0.3007]
[1672950140618,0.114,16871.0,16867.0,1.414]
[1672950140836,0.114,16871.0,16868.0,0.1]
[1672950141569,0.113,16871.0,16868.0,0.1]
[1672950142512,0.1,16871.0,16868.0,0.1]
[1672950142722,0.114,16871.0,16868.0,0.1]
[1672950151974,0.4147,16871.0,16868.0,0.4007]
[1672950155230,0.4147,16871.0,16868.0,0.1]
[1672950155231,0.114,16871.0,16868.0,0.1]
[1672950155448,0.4147,16871.0,16868.0,0.1]
[1672950157339,0.4147,16871.0,16867.0,0.4007]
[1672950158604,0.4137,16871.0,16867.0,0.4007]
[1672950163855,0.4007,16871.0,16867.0,0.4007]
[1672950164063,0.4147,16871.0,16867.0,0.4007]
[1672950165112,0.7154,16871.0,16867.0,0.4007]
[1672950166698,0.3007,16870.0,16867.0,0.4007]
[1672950166903,0.1,16869.0,16867.0,0.4007]
[1672950168169,0.114,16869.0,16867.0,0.4007]
[1672950169219,0.114,16869.0,16867.0,0.3007]
[1672950172795,0.114,16869.0,16868.0,0.1]
[1672950173639,0.114,16869.0,16867.0,0.4007]
[1672950174276,0.114,16869.0,16868.0,0.1]
[1672950174477,0.1,16869.0,16868.0,0.1]
[1672950174688,0.114,16869.0,16868.0,0.1]
[1672950179840,0.114,16869.0,16868.0,0.09992528]
[1672950181839,0.114,16869.0,16867.0,0.1]
[1672950184365,0.114,16869.0,16867.0,0.4007]
[1672950192034,0.4147,16869.0,16867.0,0.3007]
[1672950195302,0.114,16869.0,16866.0,0.40076]
[1672950196359,0.1,16869.0,16866.0,0.40076]
[1672950196567,0.114,16869.0,16866.0,0.40076]
[1672950203078,0.114,16869.0,16866.0,0.70146]
[1672950203807,0.114,16869.0,16868.0,0.3007]
[1672950204647,0.014,16869.0,16868.0,0.3007]
[1672950205066,0.015,16869.0,16868.0,0.3007]
[1672950222635,0.015,16869.0,16867.0,0.1]
[1672950222845,0.015,16869.0,16868.0,0.6014]
[1672950229992,0.015,16869.0,16868.0,0.60128618]
[1672950233992,0.015,16869.0,16868.0,0.3007]
[1672950246916,0.015,16869.0,16867.0,0.1]
[1672950247446,0.015,16869.0,16867.0,0.4007]
[1672950248497,0.014,16869.0,16867.0,0.4007]
[1672950257649,0.014,16869.0,16866.0,0.40076]
[1672950260278,0.3147,16869.0,16866.0,0.40076]
[1672950260593,0.1,16868.0,16866.0,0.40076]
[1672950261761,0.114,16868.0,16866.0,0.40076]
[1672950264182,0.114,16868.0,16866.0,0.30076]
[1672950265121,0.114,16868.0,16866.0,0.40076]
[1672950266697,0.114,16868.0,16866.0,0.30076]
[1672950267015,0.114,16868.0,16866.0,0.40076]
[1672950268381,0.114,16868.0,16867.0,0.1]
[1672950270375,0.1,16868.0,16867.0,0.1]
[1672950270582,0.114,16868.0,16867.0,0.1]
[1672950273319,0.114,16868.0,16866.0,0.40076]
[1672950274368,0.114,16868.0,16867.0,0.1]
[1672950276998,0.114,16868.0,16867.0,0.4007]
[1672950277839,0.114,16868.0,16867.0,0.3007]
[1672950279943,0.114,16868.0,16867.0,0.30051741]
[1672950286150,0.114,16868.0,16866.0,6e-05]
[1672950289724,0.4147,16868.0,16866.0,6e-05]
[1672950293408,0.114,16868.0,16866.0,6e-05]
[1672950309293,0.4147,16868.0,16866.0,6e-05]
[1672950309496,0.114,16868.0,16866.0,6e-05]
[1672950312330,0.114,16868.0,16867.0,0.3007]
[1672950313178,0.1,16868.0,16867.0,0.3007]
[1672950313379,0.114,16868.0,16867.0,0.3007]
[1672950318231,0.114,16868.0,16866.0,6e-05]
[1672950328430,0.114,16868.0,16866.0,0.30076]
[1672950332846,0.114,16868.0,16866.0,0.30056165]
[1672950333895,0.114,16868.0,16866.0,0.30062165]
[1672950335047,0.11406,16868.0,16866.0,0.30062165]
[1672950336949,0.11406,16868.0,16866.0,6e-05]
[1672950344203,0.3007,16867.0,16866.0,6e-05]
[1672950345675,0.3057,16867.0,16866.0,0.12506]
[1672950347767,0.3057,16867.0,16866.0,0.12606]
[1672950349240,0.3057,16867.0,16866.0,0.126]
[1672950350187,0.3057,16867.0,16866.0,0.12606]
[1672950351234,0.30576,16867.0,16866.0,0.12606]
[1672950354410,0.40576,16867.0,16866.0,0.12606]
[1672950355966,0.1,16866.0,16864.0,0.7811]
[1672950356183,0.1,16866.0,16863.0,0.3007]
[1672950356391,0.1,16866.0,16863.0,0.4007]
[1672950357025,0.112,16866.0,16864.0,0.063]
[1672950357547,0.111,16866.0,16863.0,0.063]
[1672950357761,0.111,16866.0,16863.0,0.3637]
[1672950357974,0.1,16866.0,16863.0,0.3007]
[1672950358185,0.112,16866.0,16864.0,0.063]
[1672950358393,0.1,16866.0,16863.0,0.3007]
[1672950358701,0.111,16866.0,16863.0,0.3637]
[1672950359556,0.1,16866.0,16863.0,0.3007]
[1672950359857,0.112,16866.0,16864.0,0.063]
[1672950360073,0.112,16866.0,16863.0,0.3637]
[1672950360074,0.111,16866.0,16863.0,0.3637]
[1672950361858,0.1,16864.0,16863.0,0.3637]
[1672950363124,0.111,16864.0,16863.0,0.3637]
[1672950363537,0.111,16864.0,16863.0,0.063]
[1672950366790,0.11083643,16864.0,16863.0,0.063]
[1672950368680,0.11083643,16864.0,16863.0,0.3637]
[1672950396116,0.11083643,16864.0,16863.0,0.063]
[1672950396430,0.11083643,16864.0,16863.0,0.3637]
[1672950401700,0.11083643,16864.0,16863.0,0.063]
[1672950412743,0.11083643,16864.0,16863.0,0.06286201]
[1672950413573,0.09983643,16864.0,16862.0,0.3007]
[1672950413789,0.11083643,16864.0,16863.0,0.057]
[1672950414004,0.11083643,16864.0,16863.0,0.157]
[1672950414218,0.10383643,16864.0,16863.0,0.13]
[1672950419363,0.10383643,16864.0,16863.0,0.4307]
[1672950420522,0.004,16864.0,16863.0,0.4307]
[1672950423777,0.004,16864.0,16863.0,0.13]
[1672950423982,0.004,16864.0,16863.0,0.4307]
[1672950432817,0.004,16864.0,16863.0,0.7314]
[1672950443644,0.004,16864.0,16863.0,0.13]
[1672950444170,0.004,16864.0,16863.0,0.4307]
[1672950444804,0.004,16864.0,16863.0,0.13]
[1672950445007,0.004,16864.0,16863.0,0.4307]
[1672950454468,0.004,16864.0,16863.0,0.7314]
[1672950457831,0.004,16864.0,16863.0,0.4307]
[1672950458453,0.004,16864.0,16863.0,0.13]
[1672950463085,0.004,16864.0,16863.0,0.12990534]
[1672950464980,0.00383004,16864.0,16863.0,0.12990534]
[1672950466766,0.00383004,16864.0,16863.0,0.43060534]
[1672950470023,0.00383004,16864.0,16863.0,0.12990534]
[1672950470233,0.00383004,16864.0,16863.0,0.43060534]
[1672950475074,0.00383004,16864.0,16863.0,0.12990534]
[1672950475278,0.00383004,16864.0,16863.0,0.43060534]
[1672950479267,0.00383004,16864.0,16863.0,0.12990534]
[1672950479478,0.00383004,16864.0,16863.0,0.43060534]
[1672950481378,0.00383004,16864.0,16863.0,1.02340534]
[1672950481793,3.004e-05,16864.0,16863.0,1.02340534]
[1672950484530,3.004e-05,16864.0,16863.0,1.32410534]
[1672950490001,3.004e-05,16864.0,16863.0,0.72270534]
[1672950490209,3.004e-05,16864.0,16863.0,1.32410534]
[1672950501881,3.004e-05,16864.0,16863.0,0.72270534]
[1672950502088,3.004e-05,16864.0,16863.0,1.32410534]
[1672950505243,3.004e-05,16864.0,16863.0,0.72270534]
[1672950505674,3.004e-05,16864.0,16863.0,1.32410534]
[1672950509246,3.004e-05,16864.0,16863.0,0.72270534]
[1672950509454,3.004e-05,16864.0,16863.0,1.32410534]
[1672950519340,3.004e-05,16864.0,16863.0,0.72270534]
[1672950519658,3.004e-05,16864.0,16863.0,1.32410534]
[1672950524176,3.004e-05,16864.0,16863.0,0.72270534]
[1672950524378,3.004e-05,16864.0,16863.0,1.32410534]
[1672950533431,3.004e-05,16864.0,16863.0,1.32395975]
[1672950534900,3.004e-05,16864.0,16863.0,0.72255975]
[1672950535112,3.004e-05,16864.0,16863.0,1.32395975]
[1672950538573,3.004e-05,16864.0,16863.0,0.72255975]
[1672950538792,3.004e-05,16864.0,16863.0,1.32395975]
[1672950545609,3.004e-05,16864.0,16863.0,1.02325975]
[1672950545824,3.004e-05,16864.0,16863.0,1.32395975]
[1672950569783,3.004e-05,16864.0,16863.0,0.72255975]
[1672950570005,3.004e-05,16864.0,16863.0,1.32395975]
[1672950570409,3.004e-05,16864.0,16863.0,0.72255975]
[1672950570634,3.004e-05,16864.0,16863.0,1.32395975]
[1672950576835,0.009,16864.0,16863.0,1.38195975]
[1672950578830,0.009,16864.0,16863.0,1.29395975]
[1672950579046,0.009,16864.0,16863.0,1.38195975]
[1672950581777,0.009,16864.0,16863.0,1.38175652]
[1672950589346,0.009,16864.0,16863.0,1.08105652]
[1672950589558,0.009,16864.0,16863.0,1.38175652]
[1672950593436,0.009,16864.0,16863.0,0.78035652]
[1672950593656,0.009,16864.0,16863.0,1.38175652]
[1672950595128,0.009,16864.0,16863.0,0.78035652]
[1672950595337,0.009,16864.0,16863.0,1.38175652]
[1672950603440,0.009,16864.0,16863.0,0.78035652]
[1672950603647,0.009,16864.0,16863.0,1.38175652]
[1672950614261,0.009,16864.0,16863.0,0.78035652]
[1672950614473,0.009,16864.0,16863.0,1.38175652]
[1672950620251,0.009,16864.0,16863.0,0.78035652]
[1672950620462,0.009,16864.0,16863.0,1.38175652]
[1672950621509,0.009,16864.0,16863.0,0.78035652]
[1672950621719,0.009,16864.0,16863.0,1.38175652]
[1672950621928,0.009,16864.0,16863.0,0.78035652]
[1672950622246,0.009,16864.0,16863.0,1.38175652]
[1672950633390,0.009,16864.0,16863.0,1.38162839]
[1672950639716,0.009,16864.0,16863.0,0.78022839]
[1672950639918,0.009,16864.0,16863.0,1.38162839]
[1672950649281,0.00888553,16864.0,16863.0,1.38162839]
[1672950681535,0.00888553,16864.0,16863.0,0.78022839]
[1672950681748,0.00888553,16864.0,16863.0,1.38162839]
[1672950687847,0.1,16867.0,16864.0,0.1]
[1672950688057,0.1,16867.0,16866.0,0.6014]
[1672950689849,0.101,16867.0,16866.0,0.6204]
[1672950704666,0.101,16867.0,16866.0,0.3197]
[1672950715704,0.101,16867.0,16866.0,0.019]
[1672950715911,0.101,16867.0,16866.0,0.3197]
[1672950720444,0.101,16867.0,16866.0,0.019]
[1672950721913,0.101,16867.0,16866.0,0.119]
[1672950722440,0.001,16867.0,16866.0,0.4197]
[1672950732857,0.001,16867.0,16866.0,0.119]
[1672950733173,0.001,16867.0,16866.0,0.7204]
[1672950736326,0.001,16867.0,16866.0,0.6204]
[1672950736538,0.001,16867.0,16866.0,0.3197]
[1672950738117,0.001,16867.0,16866.0,0.6204]
[1672950739586,0.006,16867.0,16866.0,0.7164]
[1672950739902,0.1,16868.0,16866.0,0.6014]
[1672950740104,0.005,16867.0,16866.0,0.6824]
[1672950741053,0.005,16867.0,16866.0,0.68231837]
[1672950741795,0.005,16867.0,16866.0,0.6824]
[1672950755022,0.00484727,16867.0,16866.0,0.6824]
[1672950768372,0.00484727,16867.0,16866.0,1.2752]
[1672950769744,0.1,16870.0,16866.0,0.112]
[1672950769958,0.1,16870.0,16869.0,0.3007]
[1672950770680,0.1,16870.0,16869.0,0.6014]
[1672950771320,0.105,16870.0,16869.0,0.6064]
[1672950771525,0.005,16870.0,16869.0,0.6064]
[1672950772792,0.006,16870.0,16869.0,0.6014]
[1672950773209,0.1,16871.0,16870.0,0.1]
[1672950774256,0.105,16871.0,16870.0,0.105]
[1672950774579,0.105,16871.0,16870.0,0.005]
[1672950774991,0.105,16871.0,16870.0,0.105]
[1672950775728,0.105,16871.0,16870.0,0.005]
[1672950776992,0.105,16871.0,16870.0,0.105]
[1672950777204,0.105,16871.0,16870.0,0.005]
[1672950777624,0.105,16871.0,16870.0,0.105]
[1672950778040,0.105,16871.0,16870.0,0.005]
[1672950778671,0.105,16871.0,16870.0,0.105]
[1672950778875,0.105,16871.0,16870.0,0.005]
[1672950781612,0.105,16871.0,16870.0,0.105]
[1672950783709,0.105,16871.0,16870.0,0.005]
[1672950785715,0.105,16871.0,16870.0,0.105]
[1672950787174,0.105,16871.0,16870.0,0.005]
[1672950795067,0.105,16871.0,16870.0,0.3057]
[1672950799905,0.005,16871.0,16870.0,0.3057]
[1672950804113,0.005,16871.0,16870.0,0.4057]
[1672950805055,0.005,16871.0,16870.0,0.9985]
[1672950806956,0.005,16871.0,16870.0,0.99828202]
[1672950812521,0.005,16871.0,16870.0,1.29898202]
[1672950821561,0.005,16871.0,16870.0,0.10478202]
[1672950821770,0.005,16871.0,16870.0,1.29898202]
[1672950834596,0.005,16871.0,16870.0,0.10478202]